Cogmind - Beta 10.1 @@@ ROGUE MODE // 2021.04.29 @ 07:52:54 Player: Farfid Result: Destroyed by B-90 Cyclops with Nova Cannon Performance ------------- Evolutions (8) 4000 Regions Visited (23) 4600 Robots Destroyed (346) 1730 Value Destroyed (13967) 13967 Prototype IDs (58) 1160 Alien Tech Used (0) 0 Bonus (5003) 5003 TOTAL SCORE: 30460 Bonus ------- Triggered High Security 500 High Alert Combat Kills 3553 Follower Combat Kills 50 Aligned with FarCom 300 Met Data Miner 300 Met Imprinter 300 Cogmind --------- Core Integrity 0/1450 Matter 290/300 Energy 69/100 System Corruption 60% Temperature Cool (16) Movement Core (50) Location -2/Research Parts ------- > --- POWER (2) -------- (None) > --- PROPULSION (6) --- (None) > --- UTILITY (11) ----- Advanced Target Analyzer > --- WEAPON (4) ------- Segregator > --- INVENTORY (4) ---- Advanced Heat Sink Advanced Heat Sink Cooled Phase Cannon Powered Hammer Peak State ------------ > --- POWER ------------ Particle Reactor Light Particle Reactor > --- PROPULSION ------- Biometal Heavy Treads Biometal Heavy Treads Biometal Heavy Treads > --- UTILITY ---------- Improved Coolant Injector High-capacity Storage Unit High-capacity Storage Unit High-capacity Storage Unit Advanced Terrain Scanner Advanced Terrain Scan Processor Advanced Targeting Computer Advanced Target Analyzer Centrium Medium Armor Plating Improved System Restoration Module Experimental Reclamation Unit > --- WEAPON ----------- Gamma Rifle Gamma Rifle Railgun Heavy Shock Bomb Launcher > --- INVENTORY -------- Quantum Reactor Biometal Heavy Treads Advanced Coolant Injector High-capacity Storage Unit Improved Matter Compressor Improved Particle Charger Quantum Capacitor Improved Transmission Jammer Skeleton Box Proton Burst Cannon Compact HERF Cannon Cooled Phase Cannon Enhanced Nova Cannon KE Penetrator KE Penetrator Hypervelocity Railgun Heavy Shock Bomb Launcher Tesla Bomb Launcher Gamma Bomb Array Fusion Bomb Launcher Powered Hammer [Rating: 166] Favorites ----------- Power Micro Fission Core Engine Reinforced Ion Engine Power Core Micro Fission Core Reactor Light Antimatter Reactor Propulsion Compact Wheel Treads Biometal Heavy Treads Leg Centrium Leg Wheel Compact Wheel Utility High-capacity Storage Unit Device Advanced Heat Sink Storage High-capacity Storage Unit Processor Advanced Targeting Computer Hackware Hacking Suite Protection Improved Medium Armor Plating Weapon Plasma Cannon Energy Gun Cooled Pulse Rifle Energy Cannon Plasma Cannon Ballistic Gun Gauss Rifle Launcher Heavy Shock Bomb Launcher Impact Weapon Powered Hammer Slashing Weapon Axe Build | -11 -10 -10 -9 -9 -9 -8 -8 -7 -7 -7 -7 -6 -6 -6 -6 -6 -5 -5 -5 -5 -4 -3 -2 ------- Run | Scr Mat Min Mat Min Exi Min Mat Fac Low Low Dat Pro Fac Low Low Zio Pro Fac Upp Upp Fac Res Res Slots Evolved 16 | . . . 2 . . . 2 2 . . . . 2 . . . . 2 . . 2 2 2 Power 1 | . . . . . . . . . . . . . . . . . . 1 . . . . . Propulsion 4 | . . . . . . . 1 . . . . . 1 . . . . . . . . 1 1 Utility 9 | . . . 1 . . . 1 2 . . . . 1 . . . . 1 . . 1 1 1 Weapon 2 | . . . 1 . . . . . . . . . . . . . . . . . 1 . . Parts Attached 336 | 6 1 . 21 7 2 . 8 12 2 16 . 13 12 2 . 11 13 30 28 1 22 22 107 Power 35 | 1 . . 2 1 . . . 2 . 1 . 1 1 1 . . 1 6 5 . 2 2 9 Engine 12 | 1 . . 2 1 . . . 2 . . . 1 1 . . . . 4 . . . . . Core 12 | . . . . . . . . . . 1 . . . 1 . . 1 2 5 . 1 1 . Reactor 11 | . . . . . . . . . . . . . . . . . . . . . 1 1 9 Propulsion 66 | 2 . . 3 1 1 . 1 2 1 2 . 5 4 . . 1 3 7 5 1 5 1 21 Treads 20 | . . . . . . . . . . . . 1 . . . . 3 . 2 . . . 14 Leg 8 | . . . . . . . . . . . . . . . . . . . 1 . . . 7 Wheel 38 | 2 . . 3 1 1 . 1 2 1 2 . 4 4 . . 1 . 7 2 1 5 1 . Hover . | . . . . . . . . . . . . . . . . . . . . . . . . Flight . | . . . . . . . . . . . . . . . . . . . . . . . . Utility 95 | 1 1 . 4 2 1 . 5 2 . 2 . . 6 . . 9 2 8 4 . 8 10 30 Device 38 | . . . 1 2 . . 1 1 . 1 . . 2 . . 1 1 2 . . 2 5 19 Storage 18 | 1 1 . 1 . 1 . 3 . . . . . 2 . . . . 2 . . . . 7 Processor 11 | . . . . . . . . 1 . . . . . . . 5 . 1 . . 2 . 2 Hackware 1 | . . . . . . . 1 . . . . . . . . . . . . . . . . Protection 27 | . . . 2 . . . . . . 1 . . 2 . . 3 1 3 4 . 4 5 2 Artifact . | . . . . . . . . . . . . . . . . . . . . . . . . Weapon 140 | 2 . . 12 3 . . 2 6 1 11 . 7 1 1 . 1 7 9 14 . 7 9 47 Energy Gun 46 | . . . 2 2 . . 1 2 . 7 . 1 . . . 1 1 3 5 . 3 4 14 Energy Cannon 31 | . . . . . . . 1 4 1 1 . 4 1 . . . 2 1 4 . 2 1 9 Ballistic Gun 40 | 2 . . 7 1 . . . . . 1 . 1 . 1 . . 4 4 4 . 1 1 13 Ballistic Cannon . | . . . . . . . . . . . . . . . . . . . . . . . . Launcher 19 | . . . 3 . . . . . . 2 . 1 . . . . . . . . 1 3 9 Special Weapon . | . . . . . . . . . . . . . . . . . . . . . . . . Impact Weapon 2 | . . . . . . . . . . . . . . . . . . 1 . . . . 1 Slashing Weapon 2 | . . . . . . . . . . . . . . . . . . . 1 . . . 1 Piercing Weapon . | . . . . . . . . . . . . . . . . . . . . . . . . Special Melee Weapon . | . . . . . . . . . . . . . . . . . . . . . . . . Unidentified Prototypes 19 | . . . 1 . . . 1 1 . . . . 1 . . 5 . 1 . . . 4 5 Parts Lost 165 | . . 1 9 6 . . 1 3 3 7 . 10 1 3 . . 14 2 19 . 8 . 78 Power 17 | . . . 2 . . . . 1 . 1 . 1 . . . . 2 1 1 . 1 . 7 Propulsion 44 | . . 1 1 1 . . . 1 2 2 . 4 1 2 . . 4 1 5 . 2 . 17 Utility 33 | . . . 1 2 . . . . . 1 . 1 . . . . 1 . 3 . 1 . 23 Weapon 71 | . . . 5 3 . . 1 1 1 3 . 4 . 1 . . 7 . 10 . 4 . 31 Highest Loss Streak 25 | . . 1 3 4 . . 1 2 2 7 . 5 1 2 . . 5 1 14 . 3 . 25 Average Slot Usage (%) 87 | . 85 71 91 90 100 100 97 99 96 85 84 82 90 90 86 87 82 92 79 82 94 94 80 Engine 2 | . 14 14 8 11 11 11 9 7 7 . . . 6 4 . . . 5 . . . . . Core 3 | . . . . . . . . . . 6 7 6 . 1 6 6 4 2 10 11 8 3 . Reactor 1 | . . . . . . . . . . . . . . . . . . . . . 1 4 6 Treads 2 | . . . . . . . . . . . . 2 . . . . 7 1 . 11 1 . 11 Wheel 12 | . 28 14 21 21 22 22 27 22 20 9 7 7 21 17 13 14 5 17 2 . 17 19 1 Device 9 | . . . . 1 11 11 8 14 15 7 7 7 13 13 13 8 10 7 5 5 5 12 12 Storage 19 | . 14 14 21 22 22 22 26 23 23 23 23 23 20 20 20 20 20 17 17 17 15 14 15 Processor 9 | . . . . . . . . 6 7 7 7 7 6 6 6 10 13 17 15 11 14 14 11 Protection 3 | . . . 6 5 . . . . . 6 7 5 1 6 6 5 2 2 6 11 8 4 2 Energy Gun 4 | . . . 1 4 22 22 10 6 7 6 7 7 . . . . 3 4 3 . 6 7 4 Energy Cannon 5 | . . . . . . . 7 14 14 7 7 5 13 13 13 12 7 . . . 3 4 2 Ballistic Gun 8 | . 28 28 30 24 11 11 7 . . 6 7 6 6 5 6 6 5 10 10 11 7 4 5 Naked Turns . | . . . . . . . . . . . . . . . . . . . . . . . . Heaviest Build 176 | 13 25 25 45 54 54 54 120 125 121 131 129 129 140 138 138 138 133 137 152 132 153 154 176 Greatest Support 225 | 26 26 26 32 20 20 20 30 36 36 26 10 32 64 64 32 42 55 64 58 46 58 62 225 Greatest Overweight (x) 39 | . . 1 2 5 2 2 3 6 4 13 12 12 4 4 4 4 8 5 39 8 8 2 7 Average Overweight (x) 3 | . . . . 2 2 2 2 3 3 9 12 10 2 3 4 3 4 2 8 3 2 2 . Largest Inventory Capacity 28 | 6 12 10 16 16 16 16 28 28 28 28 28 28 28 28 28 28 28 28 28 28 28 28 28 Average Capacity 26 | 5 6 10 15 16 16 16 27 28 28 28 28 28 28 28 28 28 28 28 28 28 28 28 27 Most Carried 28 | 4 6 9 16 16 16 14 23 28 28 28 25 27 28 28 28 28 28 28 28 21 28 28 28 Average Carried 23 | 1 2 8 8 15 15 14 19 21 27 23 25 25 26 27 28 27 26 27 20 20 23 27 22 Final Capacity 28 | 6 10 10 16 16 16 16 28 28 28 28 28 28 28 28 28 28 28 28 28 28 28 28 4 Final Carried 28 | . 6 9 15 16 14 14 22 28 28 25 25 23 28 28 28 27 24 28 20 20 27 28 4 Class Distribution -------------------- 28% | Hauler-Mutant 27% | Scavenger-Mutant 11% | Scavenger-Gunner 10% | Hauler-Gunner 9% | Hauler-Skirmisher 4% | Scavenger-Tank Dominant Class ---------------- Mutant | -10/Materials Mutant | -10/Mines Scavenger-Tank | -9/Materials Scavenger-Tank | -9/Mines Scavenger-Mutant | -9/Exiles Scavenger-Mutant | -8/Mines Hauler-Skirmisher | -8/Materials Hauler-Skirmisher | -7/Factory Hauler-Gunner | -7/Lower Caves Hauler-Gunner | -7/Lower Caves Hauler-Gunner | -7/Data Miner Hauler-Mutant | -6/Proximity Caves Scavenger-Mutant | -6/Factory Hauler-Mutant | -6/Lower Caves Hauler-Mutant | -6/Lower Caves Hauler-Mutant | -6/Zion Hauler-Mutant | -5/Proximity Caves Scavenger-Gunner | -5/Factory Scavenger-Gunner | -5/Upper Caves Scavenger-Mutant | -5/Upper Caves Scavenger-Mutant | -4/Factory Scavenger-Mutant | -3/Research Scavenger-Mutant | -2/Research Resources | -11 -10 -10 -9 -9 -9 -8 -8 -7 -7 -7 -7 -6 -6 -6 -6 -6 -5 -5 -5 -5 -4 -3 -2 ----------- Run | Scr Mat Min Mat Min Exi Min Mat Fac Low Low Dat Pro Fac Low Low Zio Pro Fac Upp Upp Fac Res Res Matter Collected 8029 | 260 160 77 477 235 . . 119 143 33 314 . 243 439 20 . 110 196 1094 431 119 422 313 2824 Remotely . | . . . . . . . . . . . . . . . . . . . . . . . . Salvage Created 18115 | . 380 87 655 722 . . 252 402 101 545 . 650 706 147 . . 773 1527 870 329 1213 263 8493 Parts 821 | . 23 10 42 34 . . 12 22 7 26 . 28 38 13 . . 31 61 33 8 71 7 355 Haulers Intercepted 7 | . 1 . 2 . . . . . . . . . . . . . . 2 . . . 1 1 Recyclers Shooed 15 | . . . 1 1 . . . . . . . . 2 . . . . 2 . . 2 . 7 Parts Field Recycled . | . . . . . . . . . . . . . . . . . . . . . . . . Retrieved Matter . | . . . . . . . . . . . . . . . . . . . . . . . . Parts Self-Destructed 137 | . . . . . . . . . 8 17 . 31 . 13 . . 35 . 26 7 . . . Prevented 8 | . . . . . . . . . . 3 . . . . . . . . 5 . . . . Kills | -11 -10 -10 -9 -9 -9 -8 -8 -7 -7 -7 -7 -6 -6 -6 -6 -6 -5 -5 -5 -5 -4 -3 -2 ------- Run | Scr Mat Min Mat Min Exi Min Mat Fac Low Low Dat Pro Fac Low Low Zio Pro Fac Upp Upp Fac Res Res Combat Hostiles Destroyed 247 | . 11 6 12 10 . . 5 8 4 9 . 15 5 6 . . 19 10 16 4 14 1 92 Melee 1 | . . . . . . . . . . . . . . . . . . . . . . . 1 Guns 121 | . 11 6 10 10 . . 3 2 3 1 . 11 1 . . . 9 10 14 4 1 . 25 Cannons 66 | . . . . . . . 2 6 1 3 . 3 4 6 . . 8 . 1 . 9 1 22 AOE 27 | . . . 2 . . . . . . 5 . 1 . . . . . . 1 . 4 . 14 Classes Destroyed 19 | . 3 . 4 4 . . . 2 . 1 . . 1 . . . 2 . . . . . 2 Worker 31 | . . . 2 1 . . . . . . . . 3 . . . . 4 . . 5 . 16 Builder 10 | . . . 1 . . . . 1 . . . . 2 . . . . 1 . . . . 5 Tunneler 5 | . . . . . . . . . . . . . 1 . . . . 1 . . 3 . . Hauler 7 | . 1 . 2 . . . . . . . . . . . . . . 2 . . . 1 1 Recycler 17 | . . . . 3 . . . . . . . . 2 . . . . 5 . . 2 . 5 Minesweeper 1 | . . . . . . . . . . . . . . . . . 1 . . . . . . Mechanic 1 | . . . . . . . . . . 1 . . . . . . . . . . . . . Watcher 15 | . . . 1 . . . . . . . . . 1 . . . . 2 . . 4 1 6 Swarmer 76 | . 5 6 2 . . . . 3 4 1 . 11 . 6 . . 13 . 6 4 6 . 9 Saboteur 1 | . . . . . . . . . . . . . . . . . . . . . . . 1 Grunt 58 | . 6 . 4 5 . . 3 1 . 3 . 1 1 . . . 2 1 4 . . . 27 Brawler 11 | . . . . 1 . . . . . 2 . 1 . . . . . . . . . . 7 Duelist 13 | . . . . 2 . . . . . 1 . 1 . . . . 1 . 4 . . . 4 Protector 1 | . . . . . . . . . . . . . . . . . . . . . . . 1 Sentry 22 | . . . 6 . . . 2 2 . 2 . . . . . . . 1 2 . 1 1 5 Demolisher 2 | . . . . 2 . . . . . . . . . . . . . . . . . . . Hunter 10 | . . . . . . . . 1 . . . . 2 . . . 1 1 . . . . 5 Programmer 52 | . . . . . . . . 1 . . . 1 2 . . . 1 7 . . 7 . 33 Behemoth 1 | . . . . . . . . . . . . . . . . . 1 . . . . . . Decomposer 6 | . . . . . . . . . . 3 . . . . . . . . 3 . . . . Packrat 6 | . . . . . . . . . . . . 3 . . . . . . . 3 . . . Best Kill Streak 23 | . 3 3 6 3 . . 3 3 4 5 . 5 4 3 . . 5 4 5 4 5 1 23 Combat Bots Only 9 | . 3 3 4 3 . . 3 3 4 4 . 5 2 3 . . 5 2 5 4 4 1 9 Max Kills in Single Turn 4 | . 1 1 1 2 . . 2 1 1 2 . 2 2 1 . . 2 2 2 1 4 1 4 Gunslinging 1 | . . . . 1 . . . . . . . 1 . . . . 1 . 1 . . . . Exploded 4 | . . . 1 . . . . . . 2 . 1 . . . . . . 1 . 4 . 2 Melee 1 | . . . . . . . . . . . . . . . . . . . . . . . 1 Uniques/NPCs Destroyed . | . . . . . . . . . . . . . . . . . . . . . . . . Combat | -11 -10 -10 -9 -9 -9 -8 -8 -7 -7 -7 -7 -6 -6 -6 -6 -6 -5 -5 -5 -5 -4 -3 -2 -------- Run | Scr Mat Min Mat Min Exi Min Mat Fac Low Low Dat Pro Fac Low Low Zio Pro Fac Upp Upp Fac Res Res Damage Taken 24671 | . 175 168 820 742 . . 101 407 419 675 . 764 229 319 . . 1679 716 2867 148 1045 121 13276 Core 3079 | . 32 47 158 142 . . . 68 90 95 . 82 62 75 . . 183 98 435 13 30 . 1469 Absorbed by Shields . | . . . . . . . . . . . . . . . . . . . . . . . . Reduced by Siege Mode 166 | . . . . . . . . . . . . . . . . . . . . . . . 166 Core Remaining (%) 72 | 100 . 68 . . . 25 100 . . . . 52 . . . . 62 . . 45 97 100 . Volleys Fired 923 | . 25 15 61 25 2 . 9 23 14 23 . 31 35 10 . . 50 67 51 11 87 28 356 Largest 4 | . 2 2 3 3 2 . 3 3 3 3 . 3 3 2 . . 3 3 3 2 3 4 4 Hottest 263 | . 40 40 99 102 131 . 144 185 150 130 . 133 193 160 . . 220 121 150 66 156 263 221 Shots Fired 1762 | . 50 30 168 68 4 . 24 56 26 40 . 52 72 20 . . 92 166 109 22 150 41 572 Gun 1248 | . 50 30 164 68 4 . 15 10 12 18 . 41 16 . . . 54 166 95 22 96 23 364 Cannon 416 | . . . . . . . 9 46 14 15 . 8 56 20 . . 38 . 14 . 53 16 127 Launcher 98 | . . . 4 . . . . . . 7 . 3 . . . . . . . . 1 2 81 Special . | . . . . . . . . . . . . . . . . . . . . . . . . Kinetic 861 | . 50 30 155 62 . . 6 . . 5 . 19 16 . . . 29 126 66 22 52 6 217 Thermal 606 | . . . 9 6 4 . 18 56 26 24 . 25 56 20 . . 49 40 27 . 53 22 171 Explosive 21 | . . . 4 . . . . . . 7 . 3 . . . . . . . . . . 7 Electromagnetic 274 | . . . . . . . . . . 4 . 5 . . . . 14 . 16 . 45 13 177 Robot Hit Streak 32 | . 13 4 19 8 . . 9 10 11 13 . 15 20 4 . . 32 18 28 6 10 9 27 Robot Miss Streak 8 | . 2 2 4 3 . . 3 3 3 2 . 8 2 2 . . 3 3 1 1 3 2 4 Penetration Max 1 | . . . . . . . . . . . . 1 . . . . 1 1 1 1 1 . 1 Secondary Targets 15 | . 1 . 1 2 . . . . . . . 2 . . . . 3 . 2 2 . . 2 Max Gunslinging Chain 1 | . 1 . 1 1 . . . . . . . 1 . . . . 1 . 1 1 . . 1 Capacitor 72 | . . . . . . . . . . . . . . . . . . . . . . . 72 Shots Hit Robots 1154 | . 33 13 110 45 . . 14 34 11 31 . 35 49 11 . . 71 118 86 13 70 19 391 Core Hits 570 | . 17 6 31 25 . . 9 14 4 27 . 29 21 6 . . 24 48 35 10 36 5 223 Critical Hits 54 | . . . . . . . . 1 . . . 4 . . . . . 4 . . 7 2 36 Critical Kills 20 | . . . . . . . . . . . . 1 . . . . . 2 . . 3 . 14 Critical Parts Destroyed 31 | . . . . . . . . 1 . . . 3 . . . . . 2 . . 4 2 19 Melee Attacks 3 | . . . . . . . . . . . . . . . . . . 1 . . . . 2 Impact 3 | . . . . . . . . . . . . . . . . . . 1 . . . . 2 Slashing . | . . . . . . . . . . . . . . . . . . . . . . . . Piercing . | . . . . . . . . . . . . . . . . . . . . . . . . Sneak Attacks . | . . . . . . . . . . . . . . . . . . . . . . . . Combat Hostiles . | . . . . . . . . . . . . . . . . . . . . . . . . Follow-up Attacks . | . . . . . . . . . . . . . . . . . . . . . . . . Damage Inflicted 37080 | . 425 149 1425 578 . . 334 912 197 1281 . 1403 1283 332 . . 1844 2903 2465 379 2544 593 18033 Guns 19792 | . 425 149 1126 578 . . 174 165 169 223 . 716 224 . . . 984 2903 1936 379 1478 390 7773 Cannons 8356 | . . . . . . . 160 747 28 363 . 161 1059 332 . . 720 . 315 . 761 173 3537 Explosions 8932 | . . . 299 . . . . . . 695 . 526 . . . . 140 . 214 . 305 30 6723 Melee . | . . . . . . . . . . . . . . . . . . . . . . . . Ramming . | . . . . . . . . . . . . . . . . . . . . . . . . Kinetic 11587 | . 425 149 1037 521 . . 54 . . 83 . 340 224 . . . 496 1913 1291 379 559 69 4047 Thermal 14068 | . . . 89 57 . . 280 912 197 458 . 566 1059 332 . . 1068 990 841 . 986 287 5946 Explosive 2369 | . . . 299 . . . . . . 695 . 370 . . . . . . . . . . 1005 Electromagnetic 9056 | . . . . . . . . . . 45 . 127 . . . . 280 . 333 . 999 237 7035 Impact . | . . . . . . . . . . . . . . . . . . . . . . . . Slashing . | . . . . . . . . . . . . . . . . . . . . . . . . Piercing . | . . . . . . . . . . . . . . . . . . . . . . . . Highest Corruption 60 | . . . . 7 7 7 . 3 3 3 3 3 . . . 2 . 2 2 2 10 . 60 Average Corruption 9 | . . . . 7 7 7 . 1 3 3 3 3 . . . 2 . 1 2 2 6 . 25 Corruption Purged 8 | . . . . . . . . . . . . . . . . . . . . . . . 8 Effects 526 | . . . . 7 12 9 . 13 15 14 1 14 . . . 1 . 2 19 3 31 . 385 Message Errors 77 | . . . . . 2 5 . 6 4 5 1 5 . . . 1 . 1 10 1 7 . 29 Matter Fused 63 | . . . . 1 2 2 . 1 3 4 . 5 . . . . . . . . 10 . 35 Heat Flow Errors 40 | . . . . 3 5 . . 1 2 2 . . . . . . . . 2 1 4 . 20 Energy Discharges 26 | . . . . 1 1 1 . 1 2 1 . . . . . . . 1 2 . 1 . 15 Parts Rejected 2 | . . . . . . . . . . . . . . . . . . . . . . . 2 Data Loss (minor) 34 | . . . . 1 1 . . 4 3 2 . 3 . . . . . . 2 1 3 . 14 Data Loss (major) 11 | . . . . 1 1 1 . . . . . . . . . . . . . . 2 . 6 Misfires 7 | . . . . . . . . . . . . . . . . . . . . . . . 7 Alerts 3 | . . . . . . . . . . . . . . . . . . . . . . . 3 Misdirections 36 | . . . . . . . . . . . . . . . . . . . . . . . 36 Targeting Errors 190 | . . . . . . . . . 1 . . 1 . . . . . . 3 . 4 . 181 Weapon Failures 37 | . . . . . . . . . . . . . . . . . . . . . . . 37 Overload Shots . | . . . . . . . . . . . . . . . . . . . . . . . . Overflow Damage 697 | . . . . . . . . 8 . 35 . 67 85 . . . 51 . 10 . 16 . 425 Projectiles 368 | . . . . . . . . 8 . 21 . . 85 . . . 1 . 10 . 2 . 241 Explosions 329 | . . . . . . . . . . 14 . 67 . . . . 50 . . . 14 . 184 Melee . | . . . . . . . . . . . . . . . . . . . . . . . . Knockbacks . | . . . . . . . . . . . . . . . . . . . . . . . . Impact . | . . . . . . . . . . . . . . . . . . . . . . . . Kinetic . | . . . . . . . . . . . . . . . . . . . . . . . . Secondary . | . . . . . . . . . . . . . . . . . . . . . . . . Self-Inflicted Damage 882 | . . . . . . . . . . 79 . 41 . . . . 55 . 60 . 99 22 526 Shots 25 | . . . . . . . . . . 2 . 1 . . . . 1 . 1 . 3 1 16 Rammed . | . . . . . . . . . . . . . . . . . . . . . . . . Targets Rammed . | . . . . . . . . . . . . . . . . . . . . . . . . Kicked . | . . . . . . . . . . . . . . . . . . . . . . . . Crushed . | . . . . . . . . . . . . . . . . . . . . . . . . Highest Temperature 335 | . . . 154 215 248 . 129 68 166 171 . 15 2 . . . 36 . 237 160 199 294 335 Average Temperature 77 | . . . 42 39 82 . 52 19 96 39 . 9 2 . . . 14 . 46 90 89 80 87 Received Heat Transfer 2739 | . 30 . 270 21 . . 45 54 . 153 . 57 18 6 . . 216 72 636 . 27 9 1125 Siege Activations 7 | . . . . . . . . . . . . . . . . . . . . . . . 7 Total Turns 327 | . . . . . . . . . . . . . . . . . . . . . . . 327 Longest Duration 126 | . . . . . . . . . . . . . . . . . . . . . . . 126 Robots Corrupted 37 | . . . . . . . . . . . . . . . . . 1 . . . 1 1 34 Combat Hostiles 29 | . . . . . . . . . . . . . . . . . . . . . . . 29 Parts Fried 89 | . . . . . . . . . . . . . . . . . . . 2 . 14 2 71 Impact Corruptions . | . . . . . . . . . . . . . . . . . . . . . . . . Robots Melted 3 | . . . . . . . . . . . . . . . . . 2 . . . . . 1 Combat Hostiles 3 | . . . . . . . . . . . . . . . . . 2 . . . . . 1 Parts Melted 64 | . . . . . . . . 3 1 1 . 1 7 1 . . 11 3 1 . 1 1 33 Heat Transferred 18361 | . . . 222 148 . . 444 1295 370 807 . 931 2050 650 . . 1907 1295 1153 . 1100 398 5591 Parts Sabotaged 11 | . . . . . . . . . . . . . . . . . . . . . . . 11 Parts Stolen . | . . . . . . . . . . . . . . . . . . . . . . . . Parts Stripped . | . . . . . . . . . . . . . . . . . . . . . . . . Power Chain Reactions 28 | . . . . . . . . . . . . 3 . . . . 1 . 1 . 4 . 19 Missiles Intercepted . | . . . . . . . . . . . . . . . . . . . . . . . . Alert | -11 -10 -10 -9 -9 -9 -8 -8 -7 -7 -7 -7 -6 -6 -6 -6 -6 -5 -5 -5 -5 -4 -3 -2 ------- Run | Scr Mat Min Mat Min Exi Min Mat Fac Low Low Dat Pro Fac Low Low Zio Pro Fac Upp Upp Fac Res Res Peak Influence 1925 | . 326 271 364 184 . . 200 148 . . . . 218 . . . . 155 . . 264 147 1925 Initial 126 | . . 126 105 114 . . . . . . . . 107 . . . . . . . 56 120 30 Average 302 | . 198 195 211 113 . . 64 45 . . . . 92 . . . . 46 . . 93 81 865 Maximum Alert Level 5 | . 1 1 1 . . . 1 . . . . . 1 . . . . . . . 1 . 5 Low Security (%) 69 | 100 46 76 55 100 . 100 99 100 . . . . 97 . . . . 100 . . 98 100 4 Level 1 11 | . 53 23 44 . . . . . . . . . 2 . . . . . . . 1 . 27 Level 2 3 | . . . . . . . . . . . . . . . . . . . . . . . 12 Level 3 5 | . . . . . . . . . . . . . . . . . . . . . . . 18 Level 4 5 | . . . . . . . . . . . . . . . . . . . . . . . 20 Level 5 2 | . . . . . . . . . . . . . . . . . . . . . . . 10 High Security 1 | . . . . . . . . . . . . . . . . . . . . . . . 4 Max Security . | . . . . . . . . . . . . . . . . . . . . . . . . Squads Dispatched 51 | . 2 . 1 . . . 1 3 . 1 . . 3 . . . . 2 . . 5 3 30 Investigation 5 | . 2 . . . . . 1 2 . . . . . . . . . . . . . . . Extermination 19 | . . . . . . . . 1 . . . . 2 . . . . 2 . . 4 1 9 Reinforcement 11 | . . . 1 . . . . . . . . . 1 . . . . . . . 1 2 6 Assault 16 | . . . . . . . . . . 1 . . . . . . . . . . . . 15 Garrison . | . . . . . . . . . . . . . . . . . . . . . . . . Intercept . | . . . . . . . . . . . . . . . . . . . . . . . . Construction Impeded 6 | . . . 1 . . . . . . . . . . . . . . . . . 1 1 3 Haulers Reinforced 3 | . . . . . . . . . . . . . 1 . . . . . . . . 1 1 Stealth | -11 -10 -10 -9 -9 -9 -8 -8 -7 -7 -7 -7 -6 -6 -6 -6 -6 -5 -5 -5 -5 -4 -3 -2 --------- Run | Scr Mat Min Mat Min Exi Min Mat Fac Low Low Dat Pro Fac Low Low Zio Pro Fac Upp Upp Fac Res Res Distress Signals 15 | . . . 3 . . . . . . . . . . . . . . 2 . . 4 1 5 Communications Jammed . | . . . . . . . . . . . . . . . . . . . . . . . . Distress Signals . | . . . . . . . . . . . . . . . . . . . . . . . . Times Spotted 391 | . 13 7 20 28 . . 5 8 5 14 . 18 8 7 . . 26 26 22 3 33 3 145 Peak Tracking Total 15 | . 5 3 6 15 . . 3 3 4 5 . 6 2 3 . . 5 6 9 3 6 1 14 Tactical Retreats 27 | . . 1 . 2 . . . . . . . 3 . . . . 7 2 3 . 3 . 6 Traps | -11 -10 -10 -9 -9 -9 -8 -8 -7 -7 -7 -7 -6 -6 -6 -6 -6 -5 -5 -5 -5 -4 -3 -2 ------- Run | Scr Mat Min Mat Min Exi Min Mat Fac Low Low Dat Pro Fac Low Low Zio Pro Fac Upp Upp Fac Res Res Traps Triggered 7 | . 1 . . . . . . 1 . . . . . . . . . . . . . . 5 Indirectly 1 | . . . . . . . . . . . . . . . . . . . . . . . 1 Trap Hack Attempts . | . . . . . . . . . . . . . . . . . . . . . . . . Triggered . | . . . . . . . . . . . . . . . . . . . . . . . . Disarmed . | . . . . . . . . . . . . . . . . . . . . . . . . Reprogrammed . | . . . . . . . . . . . . . . . . . . . . . . . . Reused 7 | . . . . . . . . . . 1 . . . . . . 5 1 . . . . . Traps Extracted . | . . . . . . . . . . . . . . . . . . . . . . . . Installed 7 | . . . . . . . . . . 1 . . . . . . 5 1 . . . . . Triggered 11 | . . . . . . . . . . 1 . . . 1 . . 6 1 1 . . . 1 Machines | -11 -10 -10 -9 -9 -9 -8 -8 -7 -7 -7 -7 -6 -6 -6 -6 -6 -5 -5 -5 -5 -4 -3 -2 ---------- Run | Scr Mat Min Mat Min Exi Min Mat Fac Low Low Dat Pro Fac Low Low Zio Pro Fac Upp Upp Fac Res Res Machines Disabled 15 | . . . . . . . . . . 1 . . 3 . . . . 1 . . 3 . 7 Max in Single Turn 2 | . . . . . . . . . . 1 . . 1 . . . . 1 . . 2 . 1 Garrison Access 1 | . . . . . . . . . . . . . . . . . . . . . 1 . . Machines Sabotaged . | . . . . . . . . . . . . . . . . . . . . . . . . Garrisons Compromised . | . . . . . . . . . . . . . . . . . . . . . . . . Overloaded Fab Kills . | . . . . . . . . . . . . . . . . . . . . . . . . Fab Network Shutdowns . | . . . . . . . . . . . . . . . . . . . . . . . . Hacking | -11 -10 -10 -9 -9 -9 -8 -8 -7 -7 -7 -7 -6 -6 -6 -6 -6 -5 -5 -5 -5 -4 -3 -2 --------- Run | Scr Mat Min Mat Min Exi Min Mat Fac Low Low Dat Pro Fac Low Low Zio Pro Fac Upp Upp Fac Res Res Machines Accessed 40 | . 4 . 2 . 2 . 5 5 1 . 3 . 3 . . 1 1 7 . . 2 2 2 Terminals 20 | . 3 . 1 . . . 4 2 . . . . 1 . . . 1 6 . . . 1 1 Fabricators 3 | . . . . . . . . . . . . . . . . . . . . . 1 1 1 Repair Stations 3 | . . . . . . . . 1 . . . . 1 . . . . 1 . . . . . Recycling Units 4 | . 1 . . . . . 1 2 . . . . . . . . . . . . . . . Scanalyzers 2 | . . . 1 . . . . . . . . . 1 . . . . . . . . . . Garrison Access 1 | . . . . . . . . . . . . . . . . . . . . . 1 . . Total Hacks 103 | . 5 . 7 . 2 . 13 11 5 . 14 . 9 . . 2 1 24 . . 4 2 4 Successful 66 | . 3 . 4 . 2 . 8 4 5 . 14 . 8 . . 2 1 10 . . 1 1 3 Failed 37 | . 2 . 3 . . . 5 7 . . . . 1 . . . . 14 . . 3 1 1 Catastrophic 5 | . 1 . . . . . 1 . . . . . 1 . . . . 2 . . . . . Database Lockouts . | . . . . . . . . . . . . . . . . . . . . . . . . Manual 16 | . 1 . 2 . 1 . 8 4 . . . . . . . . . . . . . . . Terminals 55 | . 4 . 5 . . . 12 5 . . . . 3 . . . 1 22 . . . 1 2 Fabricators 5 | . . . . . . . . . . . . . . . . . . . . . 2 1 2 Repair Stations 6 | . . . . . . . . 2 . . . . 2 . . . . 2 . . . . . Recycling Units 6 | . 1 . . . . . 1 4 . . . . . . . . . . . . . . . Scanalyzers 6 | . . . 2 . . . . . . . . . 4 . . . . . . . . . . Garrison Access 2 | . . . . . . . . . . . . . . . . . . . . . 2 . . Terminal Hacks 47 | . 2 . 2 . 2 . 7 1 5 . 14 . 2 . . 2 1 8 . . . . 1 Record 12 | . . . . . 1 . . . 5 . 5 . . . . . 1 . . . . . . Part Schematic 8 | . . . 1 . . . . . . . 4 . . . . 2 . 1 . . . . . Robot Schematic 2 | . . . . . . . . . . . 2 . . . . . . . . . . . . Robot Analysis 2 | . 1 . . . . . . 1 . . . . . . . . . . . . . . . Prototype ID Bank 7 | . . . . . . . . . . . 3 . . . . . . 3 . . . . 1 Terminal Index 1 | . . . . . . . 1 . . . . . . . . . . . . . . . . Alert Level 2 | . . . . . . . 1 . . . . . 1 . . . . . . . . . . Unreport Threat 2 | . . . . . . . 1 . . . . . . . . . . 1 . . . . . Locate Traps 5 | . . . . . . . 2 . . . . . 1 . . . . 2 . . . . . Recall Investigation 1 | . . . 1 . . . . . . . . . . . . . . . . . . . . Hauler Manifests 4 | . 1 . . . . . 2 . . . . . . . . . . 1 . . . . . EX-Prototype ID Bank 1 | . . . . . 1 . . . . . . . . . . . . . . . . . . Fabricator Hacks 3 | . . . . . . . . . . . . . . . . . . . . . . 1 2 Network Status 1 | . . . . . . . . . . . . . . . . . . . . . . . 1 Load Schematic 1 | . . . . . . . . . . . . . . . . . . . . . . . 1 Build 1 | . . . . . . . . . . . . . . . . . . . . . . 1 . Repair Station Hacks 6 | . . . . . . . . 2 . . . . 2 . . . . 2 . . . . . Scan Component 3 | . . . . . . . . 1 . . . . 1 . . . . 1 . . . . . Repair 3 | . . . . . . . . 1 . . . . 1 . . . . 1 . . . . . Recycling Unit Hacks . | . . . . . . . . . . . . . . . . . . . . . . . . Scanalyzer 6 | . . . 2 . . . . . . . . . 4 . . . . . . . . . . Insert Component 3 | . . . 1 . . . . . . . . . 2 . . . . . . . . . . Analyze 3 | . . . 1 . . . . . . . . . 2 . . . . . . . . . . Garrison Access Hacks 1 | . . . . . . . . . . . . . . . . . . . . . 1 . . Seal Access 1 | . . . . . . . . . . . . . . . . . . . . . 1 . . Unauthorized Hacks 3 | . 1 . . . . . 1 1 . . . . . . . . . . . . . . . Terminals . | . . . . . . . . . . . . . . . . . . . . . . . . Fabricators . | . . . . . . . . . . . . . . . . . . . . . . . . Repair Stations . | . . . . . . . . . . . . . . . . . . . . . . . . Recycling Units 3 | . 1 . . . . . 1 1 . . . . . . . . . . . . . . . Tunnel 3 | . 1 . . . . . 1 1 . . . . . . . . . . . . . . . Scanalyzers . | . . . . . . . . . . . . . . . . . . . . . . . . Garrison Access . | . . . . . . . . . . . . . . . . . . . . . . . . Data Cores Recovered . | . . . . . . . . . . . . . . . . . . . . . . . . Used . | . . . . . . . . . . . . . . . . . . . . . . . . Hacking Detections 24 | . 2 . 2 . . . 2 3 . . . . 3 . . . . 7 . . 2 1 2 Full Trace Events 1 | . . . . . . . . 1 . . . . . . . . . . . . . . . Feedback Events 1 | . . . . . . . . 1 . . . . . . . . . . . . . . . Corruption 1 | . . . . . . . . 1 . . . . . . . . . . . . . . . Feedback Blocked . | . . . . . . . . . . . . . . . . . . . . . . . . Robot Schematics Acquired 2 | . . . . . . . . . . . 2 . . . . . . . . . . . . Robots Built 2 | . . . . . . . . . . . . . . . . . . . . . . 2 . Matter 285 | . . . . . . . . . . . . . . . . . . . . . . 285 . Time 76 | . . . . . . . . . . . . . . . . . . . . . . 76 . Total Robot Build Rating 10 | . . . . . . . . . . . . . . . . . . . . . . 10 . Part Schematics Acquired 11 | . . . 2 . . . . . . . 4 . 2 . . 2 . 1 . . . . . Parts Built . | . . . . . . . . . . . . . . . . . . . . . . . . Matter . | . . . . . . . . . . . . . . . . . . . . . . . . Time . | . . . . . . . . . . . . . . . . . . . . . . . . Total Part Build Rating . | . . . . . . . . . . . . . . . . . . . . . . . . Parts Repaired 3 | . . . . . . . . 1 . . . . 1 . . . . 1 . . . . . Time 70 | . . . . . . . . 44 . . . . 13 . . . . 13 . . . . . Parts Recycled . | . . . . . . . . . . . . . . . . . . . . . . . . Recycled Matter . | . . . . . . . . . . . . . . . . . . . . . . . . Retrieved Matter . | . . . . . . . . . . . . . . . . . . . . . . . . Retrieved Components . | . . . . . . . . . . . . . . . . . . . . . . . . Parts Scanalyzed 3 | . . . 1 . . . . . . . . . 2 . . . . . . . . . . Part Schematics Acquired 3 | . . . 1 . . . . . . . . . 2 . . . . . . . . . . Parts Damaged . | . . . . . . . . . . . . . . . . . . . . . . . . Bothacking | -11 -10 -10 -9 -9 -9 -8 -8 -7 -7 -7 -7 -6 -6 -6 -6 -6 -5 -5 -5 -5 -4 -3 -2 ------------ Run | Scr Mat Min Mat Min Exi Min Mat Fac Low Low Dat Pro Fac Low Low Zio Pro Fac Upp Upp Fac Res Res Used RIF Installer . | . . . . . . . . . . . . . . . . . . . . . . . . Robots Hacked . | . . . . . . . . . . . . . . . . . . . . . . . . Non-combat . | . . . . . . . . . . . . . . . . . . . . . . . . Combat . | . . . . . . . . . . . . . . . . . . . . . . . . Robot Hacks Applied . | . . . . . . . . . . . . . . . . . . . . . . . . Relay Couplers Released . | . . . . . . . . . . . . . . . . . . . . . . . . Robots Rewired 3 | . . . . . . . . . . 1 . . . . . . . . 2 . . . . Allies Hacked . | . . . . . . . . . . . . . . . . . . . . . . . . Hacks Repelled . | . . . . . . . . . . . . . . . . . . . . . . . . Allies | -11 -10 -10 -9 -9 -9 -8 -8 -7 -7 -7 -7 -6 -6 -6 -6 -6 -5 -5 -5 -5 -4 -3 -2 -------- Run | Scr Mat Min Mat Min Exi Min Mat Fac Low Low Dat Pro Fac Low Low Zio Pro Fac Upp Upp Fac Res Res Total Allies 9 | . . . . 3 . . . . . 1 . 1 . . . . . . 2 . . 2 . Largest Group 3 | . . . . 3 . . . . . 1 1 2 . . . . . . 2 . . 2 . Highest-Rated Group 124 | . . . . 40 . . . . . 30 30 124 . . . . . . 60 . . 28 . Highest-Rated Ally 94 | . . . . 16 . . . . . 30 30 94 . . . . . . 30 . . 14 . Total Orders . | . . . . . . . . . . . . . . . . . . . . . . . . Ally Attacks 33 | . . . . 15 . . . . . . . 2 . . . . . . 14 . . 2 . Total Damage 456 | . . . . 130 . . . . . . . 32 . . . . . . 294 . . . . Kills 4 | . . . . 3 . . . . . . . . . . . . . . 1 . . . . Allies Corrupted . | . . . . . . . . . . . . . . . . . . . . . . . . Allies Melted 1 | . . . . . . . . . . . . . . . . . . . 1 . . . . Intel | -11 -10 -10 -9 -9 -9 -8 -8 -7 -7 -7 -7 -6 -6 -6 -6 -6 -5 -5 -5 -5 -4 -3 -2 ------- Run | Scr Mat Min Mat Min Exi Min Mat Fac Low Low Dat Pro Fac Low Low Zio Pro Fac Upp Upp Fac Res Res Robot Analysis Total 2 | . 1 . . . . . . 1 . . . . . . . . . . . . . . . Derelict Logs Recovered 15 | . . 1 . 1 . . . . 1 1 . 1 . 1 2 3 3 . 1 . . . . Drone Launches . | . . . . . . . . . . . . . . . . . . . . . . . . Drone Recoveries . | . . . . . . . . . . . . . . . . . . . . . . . . Decoded 0b10 Intel 101 | . . . . . . . . . . . . . . . . . . 32 . . 29 17 23 Items 101 | . . . . . . . . . . . . . . . . . . 32 . . 29 17 23 Exploration | -11 -10 -10 -9 -9 -9 -8 -8 -7 -7 -7 -7 -6 -6 -6 -6 -6 -5 -5 -5 -5 -4 -3 -2 ------------- Run | Scr Mat Min Mat Min Exi Min Mat Fac Low Low Dat Pro Fac Low Low Zio Pro Fac Upp Upp Fac Res Res Turns Passed 23086 | 32 337 244 563 800 433 370 507 1303 784 1250 160 1119 1160 505 768 1337 2025 1839 1667 212 1403 708 3560 Spaces Moved 12628 | 29 247 160 305 634 415 213 404 839 576 645 81 535 759 346 530 937 882 1032 473 91 709 446 1340 Core 18 | 12 . . . . . . . . . . . . . . . . . . 5 . . . 1 Treads 1589 | . . . . . . . . . . . . . . . . . 343 85 56 75 . . 1030 Legs 392 | . . . . . . . . . . . . . . . . . . . 254 . . . 138 Wheels 10629 | 17 247 160 305 634 415 213 404 839 576 645 81 535 759 346 530 937 539 947 158 16 709 446 171 Hover . | . . . . . . . . . . . . . . . . . . . . . . . . Flight . | . . . . . . . . . . . . . . . . . . . . . . . . Fastest Speed 50 | 50 90 90 100 100 100 100 90 110 116 130 200 130 120 120 140 123 130 115 115 180 110 108 50 Average Speed 140 | 73 90 109 106 100 100 100 108 118 120 174 200 187 126 132 140 136 181 129 298 196 122 109 151 Slowest Speed 2000 | 90 90 110 120 130 100 100 110 140 130 210 200 200 140 140 140 140 260 260 2000 200 180 110 185 Overloaded Moves . | . . . . . . . . . . . . . . . . . . . . . . . . Propulsion Burnouts . | . . . . . . . . . . . . . . . . . . . . . . . . Robots Hopped . | . . . . . . . . . . . . . . . . . . . . . . . . Cave-ins Triggered 2 | . . . . 1 . . . . . . . . . . . . . . . . . . 1 Exploration Rate (%) 47 | 3 44 42 30 95 87 48 34 21 71 74 70 68 15 53 51 85 78 28 60 16 22 9 28 Regions Visited 23 Branch Regions 14 Pre-discovered Areas 9 | . 1 . . . 1 . 1 1 1 1 . 1 . 1 . . . . 1 . . . . Known Exits Taken 2 | . . . 1 . . . . . . . . . . . . . 1 . . . . . . Unknown Exits Taken 21 | 1 1 1 . 1 1 1 1 1 1 1 1 1 1 1 1 1 . 1 1 1 1 1 . Scrap Searched 20 | . . 1 . 3 . . . . 3 2 . 3 . 1 2 3 2 . . . . . . Spaces Dug 68 | . . . . . . . . 3 2 . . . 1 . . . . 1 . . 25 9 27 Terrain Destroyed 468 | . . . 27 . . . 2 6 3 35 . 46 5 . . . 9 4 15 1 56 9 250 Melee 2 | . . . . . . . . . . . . . . . . . . 1 . . . . 1 Projectile 131 | . . . . . . . 2 6 3 . . 3 5 . . . 3 3 8 1 37 9 51 AOE 335 | . . . 27 . . . . . . 35 . 43 . . . . 6 . 7 . 19 . 198 Terrain Rammed . | . . . . . . . . . . . . . . . . . . . . . . . . Walls Destroyed . | . . . . . . . . . . . . . . . . . . . . . . . . Machines Disabled . | . . . . . . . . . . . . . . . . . . . . . . . . Actions | -11 -10 -10 -9 -9 -9 -8 -8 -7 -7 -7 -7 -6 -6 -6 -6 -6 -5 -5 -5 -5 -4 -3 -2 --------- Run | Scr Mat Min Mat Min Exi Min Mat Fac Low Low Dat Pro Fac Low Low Zio Pro Fac Upp Upp Fac Res Res Total 16456 | 38 311 198 430 748 430 370 455 1100 643 732 80 599 894 372 556 1001 1215 1402 630 103 1106 627 2416 Wait 2104 | . 32 21 18 74 4 158 9 201 46 38 . 12 59 12 25 36 248 221 20 . 254 107 509 Move 12605 | 28 246 159 304 633 414 212 403 838 575 644 80 534 758 345 529 936 881 1031 472 90 708 445 1340 Hop . | . . . . . . . . . . . . . . . . . . . . . . . . Pick Up 293 | 4 6 3 21 7 3 . 18 21 4 5 . 8 21 2 1 5 12 32 14 1 26 9 70 Fast Attach 42 | 2 1 . . 2 . . . . . . . . 6 . . 6 2 7 . . . 9 7 Attach 237 | 4 . . 18 5 1 . 6 12 2 8 . 9 4 2 . 3 10 14 23 1 18 8 89 Detach 17 | . . . 3 . . . . . . 1 . . . . . . . 1 3 . . 2 7 Swap 57 | . . . 3 . 1 . 2 . . 8 . 4 2 . . 2 1 9 5 . 4 5 11 Drop 130 | . 1 . 2 2 5 . 8 5 2 2 . 1 9 1 1 13 6 18 6 . 9 14 25 Fire 923 | . 25 15 61 25 2 . 9 23 14 23 . 31 35 10 . . 50 67 51 11 87 28 356 Melee 3 | . . . . . . . . . . . . . . . . . . 1 . . . . 2 Ram . | . . . . . . . . . . . . . . . . . . . . . . . . Kick . | . . . . . . . . . . . . . . . . . . . . . . . . Crush . | . . . . . . . . . . . . . . . . . . . . . . . . Escape Stasis . | . . . . . . . . . . . . . . . . . . . . . . . . Rewire 38 | . . . . . . . . . . 2 . . . . . . . . 36 . . . . Trap 7 | . . . . . . . . . . 1 . . . . . . 5 1 . . . . . Miscellaneous . | . . . . . . . . . . . . . . . . . . . . . . . . Route ------- -11/Scrapyard -10/Materials (discovered 2 exits: *Mat / [*Min]) -10/Mines -9/Materials (discovered 2 exits: *Min / [*Sto]) -9/Mines (discovered 2 exits: *Mat / *Exi) -9/Exiles -8/Mines -8/Materials -7/Factory (discovered 2 exits: *Low x2) -7/Lower Caves -7/Lower Caves -7/Data Miner -6/Proximity Caves -6/Factory -6/Lower Caves -6/Lower Caves -6/Zion -5/Proximity Caves -5/Factory (discovered 2 exits: *Fac / [*Upp]) -5/Upper Caves -5/Upper Caves -4/Factory -3/Research -2/Research History --------- Turn | Location | Event 4 | -11/Scrapyard | Discovered new exit (range 16) 33 | -11/Scrapyard | Entered Materials 170 | -10/Materials | Discovered new exit (range 15) 244 | -10/Materials | Discovered new exit (range 6) 305 | -10/Materials | Build established: Mutant 370 | -10/Materials | Entered Mines 442 | -10/Mines | Learned location of 1 exit from Materials 464 | -10/Mines | Received a Rocket Launcher from a helpful Derelict 528 | -10/Mines | A weapon hastily lodged in a ceiling crevice suddenly fell to the ground 576 | -10/Mines | Discovered new exit (range 16) 614 | -10/Mines | Entered Materials 614 | -9/Materials | Evolved 2 slots: Utility x1, Weapon x1 615 | -9/Materials | Identified exit to Mines 668 | -9/Materials | Discovered new exit (range 16) 788 | -9/Materials | Lost 3 parts (1p2w) 943 | -9/Materials | Lost 3 parts (1p2w) 1177 | -9/Materials | Entered Mines 1269 | -9/Mines | Met a Derelict bent on vengeance 1330 | -9/Mines | Build established: Scavenger-Tank 1348 | -9/Mines | Assisted by bots powering up and referring to "LRC-V3" 1371 | -9/Mines | Assembled infested the area 1400 | -9/Mines | Core integrity fell below 50% 1666 | -9/Mines | Crushed by falling debris 1697 | -9/Mines | Lost 4 parts (1n1u2w) 1698 | -9/Mines | Found a damaged Exp. Sensor Array with a note attached 1700 | -9/Mines | Found Prototype Device 1757 | -9/Mines | Discovered new exit (range 10) 1813 | -9/Mines | Learned 4 Materials zone layouts 1973 | -9/Mines | Deemed a non-threat by the Exiles lab entrance 1973 | -9/Mines | Discovered new exit (range 5) 1977 | -9/Mines | Entered Exiles 2016 | -9/Exiles | Met 8R-AWN 2032 | -9/Exiles | Met EX-HEX 2070 | -9/Exiles | Met EX-DEC 2078 | -9/Exiles | Learned location of Zion (-6) 2155 | -9/Exiles | Visited The Gauntlet 2255 | -9/Exiles | Met EX-BIN 2270 | -9/Exiles | Aligned with FarCom system 2271 | -9/Exiles | Given EX-Vault access code 2294 | -9/Exiles | Opened EX-Vault 2302 | -9/Exiles | Found Skeleton Box 2319 | -9/Exiles | Build established: Scavenger-Mutant 2325 | -9/Exiles | Warned to stay clear of 0b10 Research branches 2401 | -9/Exiles | Discovered new exit (range 10) 2410 | -9/Exiles | Left Exiles lab with Skeleton Box 2410 | -9/Exiles | Entered Mines 2773 | -8/Mines | Discovered new exit (range 7) 2780 | -8/Mines | Entered Materials 2780 | -8/Materials | Evolved 2 slots: Propulsion x1, Utility x1 3269 | -8/Materials | Discovered new exit (range 9) 3287 | -8/Materials | Entered Factory 3287 | -7/Factory | Evolved 2 slots: Utility x2 3588 | -7/Factory | Build established: Hauler-Skirmisher 3883 | -7/Factory | Discovered new exit (range 14) 4227 | -7/Factory | Discovered new exit (range 16) 4555 | -7/Factory | Repaired Hvy. Ion Cannon 4590 | -7/Factory | Entered Lower Caves 4666 | -7/Lower Caves | Learned Factory trap positions 4666 | -7/Lower Caves | Learned Research stockpile data 4666 | -7/Lower Caves | Learned Research security intel 4666 | -7/Lower Caves | Learned Extension security intel 4878 | -7/Lower Caves | Build established: Hauler-Gunner 5222 | -7/Lower Caves | Learned Factory garrison access intel 5364 | -7/Lower Caves | Discovered new exit (range 4) 5374 | -7/Lower Caves | Entered another Lower Caves area 5376 | -7/Lower Caves | Attracted the attention of an 0b10 checkpoint 5446 | -7/Lower Caves | Lost 7 parts (1p2n1u3w) 5795 | -7/Lower Caves | Attracted the attention of an 0b10 outpost 6065 | -7/Lower Caves | Encountered a Warlord checkpoint 6251 | -7/Lower Caves | Build established: Scavenger-Mutant 6602 | -7/Lower Caves | Discovered new exit (range 5) 6624 | -7/Lower Caves | Entered Data Miner 6624 | -7/Data Miner | Accompanied by 1 ally 6624 | -7/Data Miner | Discovered new exit (range 6) 6643 | -7/Data Miner | Build established: Hauler-Gunner 6662 | -7/Data Miner | Met Data Miner 6732 | -7/Data Miner | Received God Mode back door access code from Data Miner 6784 | -7/Data Miner | Entered Proximity Caves 6784 | -6/Proximity Caves | Accompanied by 1 ally 6820 | -6/Proximity Caves | Escorted by Enhanced Grunt 7086 | -6/Proximity Caves | Spotted B-75 Beast 7530 | -6/Proximity Caves | Attracted the attention of an 0b10 checkpoint 7767 | -6/Proximity Caves | Lost 5 parts (3n2w) 7833 | -6/Proximity Caves | Build established: Hauler-Mutant 7839 | -6/Proximity Caves | Lost 3 parts (1p1n1w) 7874 | -6/Proximity Caves | Discovered new exit (range 7) 7903 | -6/Proximity Caves | Entered Factory 7903 | -6/Factory | Evolved 2 slots: Propulsion x1, Utility x1 7904 | -6/Factory | Loaded intel: 96 trap records 7905 | -6/Factory | Loaded intel: 4 garrison access locations 8204 | -6/Factory | Build established: Hauler-Skirmisher 8408 | -6/Factory | Repaired Hcp. Storage Unit 8752 | -6/Factory | Discovered new exit (range 9) 8843 | -6/Factory | Build established: Scavenger-Mutant 9063 | -6/Factory | Entered Lower Caves 9551 | -6/Lower Caves | Build established: Hauler-Mutant 9553 | -6/Lower Caves | Discovered new exit (range 12) 9567 | -6/Lower Caves | Attracted the attention of an 0b10 checkpoint 9568 | -6/Lower Caves | Entered another Lower Caves area 9577 | -6/Lower Caves | Learned Factory security intel 9650 | -6/Lower Caves | Encountered a Warlord checkpoint 9696 | -6/Lower Caves | Discovered new exit (range 10) 10336 | -6/Lower Caves | Entered Zion 10439 | -6/Zion | Discovered new exit (range 12) 10508 | -6/Zion | Found Prototype Device 10509 | -6/Zion | Identified Mobile Refinery Mk. CCLXVII 10808 | -6/Zion | Build established: Scavenger-Mutant 10812 | -6/Zion | Found Prototype Processor 10812 | -6/Zion | Identified Exp. Targeting Computer 10817 | -6/Zion | Found Prototype Processor 10817 | -6/Zion | Identified Exp. Signal Interpreter 10820 | -6/Zion | Found Prototype Processor 10820 | -6/Zion | Identified Exp. Melee Analysis Suite 10832 | -6/Zion | Found Exp. Targeting Computer 10912 | -6/Zion | System corruption cleaned by Quarantine Array 10966 | -6/Zion | Learned 4 Factory zone layouts 11083 | -6/Zion | Learned Factory garrison access intel 11123 | -6/Zion | Build established: Hauler-Mutant 11382 | -6/Zion | Rebuked by Imprinter 11673 | -6/Zion | Entered Proximity Caves 11774 | -5/Proximity Caves | Identified exit to Factory 11865 | -5/Proximity Caves | Spotted B-75 Beast 12186 | -5/Proximity Caves | Learned Factory garrison access intel 12421 | -5/Proximity Caves | Lost 5 parts (1n1u3w) 13190 | -5/Proximity Caves | Destroyed B-75 Beast 13297 | -5/Proximity Caves | Lost 4 parts (1p1n2w) 13613 | -5/Proximity Caves | Learned Factory emergency access door positions 13698 | -5/Proximity Caves | Entered Factory 13698 | -5/Factory | Evolved 2 slots: Power x1, Utility x1 13702 | -5/Factory | Loaded intel: 4 garrison access locations 14039 | -5/Factory | Discovered new exit (range 16) 14296 | -5/Factory | Build established: Scavenger-Mutant 14471 | -5/Factory | Repaired Hcp. Storage Unit 14737 | -5/Factory | Build established: Scavenger-Gunner 15533 | -5/Factory | Discovered new exit (range 4) 15537 | -5/Factory | Entered Upper Caves 15593 | -5/Upper Caves | Attracted the attention of an 0b10 outpost 15684 | -5/Upper Caves | Lost 14 parts (1p4n2u7w) 15995 | -5/Upper Caves | Learned location of Armory (-3) 16712 | -5/Upper Caves | Core integrity fell below 50% 16723 | -5/Upper Caves | Lost 4 parts (1n1u2w) 17033 | -5/Upper Caves | Attracted the attention of an 0b10 checkpoint 17113 | -5/Upper Caves | Build established: Scavenger-Mutant 17194 | -5/Upper Caves | Discovered new exit (range 4) 17204 | -5/Upper Caves | Entered another Upper Caves area 17320 | -5/Upper Caves | Discovered new exit (range 9) 17416 | -5/Upper Caves | Entered Factory 17416 | -4/Factory | Evolved 2 slots: Utility x1, Weapon x1 17417 | -4/Factory | Loaded intel: 4 garrison access locations 18143 | -4/Factory | Lost 3 parts (1p1n1w) 18507 | -4/Factory | Found Quantum Capacitor 18780 | -4/Factory | Discovered new exit (range 15) 18796 | -4/Factory | Lost 3 parts (3w) 18799 | -4/Factory | System corruption reached 10% 18812 | -4/Factory | Spotted B-86 Titan 18819 | -4/Factory | Entered Research 18819 | -3/Research | Evolved 2 slots: Propulsion x1, Utility x1 18842 | -3/Research | Found Fusion Bomb Launcher 19090 | -3/Research | Found Gamma Bomb Array 19129 | -3/Research | Fabricated E-15 Imp? 19228 | -3/Research | Discovered new exit (range 4) 19298 | -3/Research | Found Prototype Launcher 19298 | -3/Research | Identified Tesla Bomb Launcher 19527 | -3/Research | Entered another Research area 19527 | -2/Research | Evolved 2 slots: Propulsion x1, Utility x1 19636 | -2/Research | Lost 3 parts (2n1u) 20234 | -2/Research | Build established: Hauler-Tank 20747 | -2/Research | Crushed by falling debris 20747 | -2/Research | System corruption reached 10% 20778 | -2/Research | Lost 3 parts (3u) 20836 | -2/Research | Destroyed 9 combat bots 20909 | -2/Research | Lost 5 parts (2u3w) 21067 | -2/Research | First assault squad dispatched 21223 | -2/Research | Incoming assault squad redirected 21252 | -2/Research | Lost 8 parts (3n1u4w) 21254 | -2/Research | Destroyed 7 combat bots 21296 | -2/Research | Incoming assault squad redirected 21407 | -2/Research | Found Prototype Processor 21408 | -2/Research | Identified Exp. Core Analyzer 21643 | -2/Research | System corruption reached 30% 22018 | -2/Research | Lost 4 parts (2u2w) 22097 | -2/Research | Incoming assault squad redirected 22106 | -2/Research | Incoming assault squad redirected 22320 | -2/Research | Build established: Scavenger-Mutant 22356 | -2/Research | Incoming assault squad redirected 22436 | -2/Research | Lost 6 parts (1p2n1u2w) 22447 | -2/Research | Incoming assault squad redirected 22548 | -2/Research | Incoming assault squad redirected 22838 | -2/Research | Incoming assault squad redirected 22839 | -2/Research | Incoming assault squad redirected 22911 | -2/Research | High security lockdown imminent 22949 | -2/Research | Lost 4 parts (2u2w) 22955 | -2/Research | Destroyed 7 combat bots 22991 | -2/Research | High security lockdown engaged 23020 | -2/Research | Spotted B-90 Cyclops 23024 | -2/Research | Core integrity fell below 50% 23076 | -2/Research | Core integrity fell below 20% 23087 | -2/Research | Destroyed by B-90 Cyclops with Nova Cannon Last Messages --------------- 23077_ E-15 Imp destroyed. 23078_ Extracted 6 matter. 23078_ System corrupted: Proton Burst Cannon targeting data glitched. 23079_ B-74 Champion system terminally corrupted. 23079_ The unstable cave ceiling collapses. 23081_ System corrupted: Proton Burst Cannon targeting data glitched. 23082_ The unstable cave ceiling collapses. 23082_ C-30 ARC bursts open, deploying its payload. 23082_ G-73 Enforcer unfolds itself. 23082_ L-61 Swordsman unfolds itself. 23082_ B-74 Champion unfolds itself. 23082_ G-73 Enforcer unfolds itself. 23082_ I-47 Archangel unfolds itself. 23083_ System corrupted: Proton Burst Cannon targeting data glitched. 23083_ Quantum Reactor destroyed. 23085_ The unstable cave ceiling collapses. 23085_ Dropped Hcp. Storage Unit. 23086_ Adv. Targeting Computer destroyed. 23086_ Proton Burst Cannon destroyed. 23087_ Acquired Segregator. Map ----- +----------------------------------------------------+ | | | | | | | | | | | | | ?????###############?????????????##???????###????? | | ?????# #?????????????# ????? ????? | | ?????# #?????????????# ???? ?? # | | ###### #?????????????# ?"" """ # | | + #?????????????# """ """ # | | ##### #?????????????# """ """ # | | #???# / #?????????????# """ # | | #???#######+#######?????????????# """ # | | #???????# #########??????????? | ?? | | ######### # !! #????????????? ???? | | + !! #??????????????? ?????? | | ######### # !! [ #??????????????###+######+# | | #???????# #########??????######??# | | #?######### #########?????##?# #??# | | #?# #### # ###### ### ####%% [ | | #?# + + ## # # #; /BB!%[! | | #?# #### # # ] ! ;BB /######### | | #?# #??# #?? # !!= #%![**[ %! | | #?# #??# #???? # !!%! == ##%!!=%=! !% | | #?# #??# #?????Y##!!*@l %![ ##*=!""""" " | | #?# ! #### ####???# %= b % """""" | | ### + #??#### =ggg l """"?? | | # # #??# # m# # ggg % ? | | ###### #??# g i | | * =!#??# b !% """"""" | | ############ #??# # %! # """"""? | | ^ #??????????# #### # ="## """""?? | | +###??????????# !! #[! # % # ???? | | ??????????????###### #[! ???? | | ???????????????????# # ###???? | | ???????????????????# # [# ## ##?????? | | ???????????????????# ##### ### # ###??????? | | ??????????????????? #???###?? ????????? | | ?????????????????? #????????+####????????? | | ????????????????? #?????????????????????? | | ???????????????? ! #?????????????????????? | | ??????????????? #?????????????????????? | | ?????????????? ! #?????????????????????? | | ????????????? ! #?????????????????????? | | ?????????????? #######?????????????????????? | | ??????????????? ????????????????????????????? | | ?????????????????### ????????????????????????????? | | ????????????????????+????????????????????????????? | | ?????????????????????????????????????????????????? | +----------------------------------------------------+ Best States ------------- Heat Dissipation 87 Coolant Potential 180 Energy Generation 45 Energy Capacity 840 Matter Stores 300 Matter Capacity 300 Sight Range 23 Robot Scan Range 10 Terrain Scan Range 20 Terrain Scan Density 210 Jamming Range 12 Additional Mass Support 16 Armor Coverage 1200 Resistance: KI 25 Resistance: TH 20 Resistance: EM 25 Core Shielding 20 Propulsion Shielding 33 Evasion (%) 50 Targeting Accuracy 20 Target Analysis 8 Recoil Reduction 6 Energy Filtering 30 Item Schematics ----------------- Lrg. Storage Unit | -9/Materials | Scanalyzed Wheel | -9/Materials | Hacked Combat Drone Bay | -7/Data Miner | Free Lgt. Regenerative Plating | -7/Data Miner | Free Triangulator | -7/Data Miner | Free Mni. Smartbomb Launcher | -7/Data Miner | Free Hcp. Storage Unit | -6/Factory | Scanalyzed Energy Filter | -6/Factory | Scanalyzed Battle Cannon | -6/Zion | Free Enh. Flamer | -6/Zion | Free Nova Cannon | -5/Factory | Hacked Robot Schematics ------------------ X-72 Disruptor | -7/Data Miner | Free I-36 Angel | -7/Data Miner | Free Fabricated ------------ E-15 Imp | x2 | -3/Research | Preloaded Alien Tech Used ----------------- None Achievements -------------- None Challenges ------------ None Game ------ Seed StasisPortableSystem Manual? 0 Play Time 03:14:19 Cumulative 167.1 hours Start 2021.04.28 @ 20:29:24 End 2021.04.29 @ 07:52:54 Sessions 2 Manual Loads 0 Difficulty Rogue Special Mode None Game No. 65 Rogue 65 Adventurer 0 Explorer 0 Win Type - Total 2 Types 2/0/0/0/0/0/0/0/0 Lore% 61 Gallery% 73 Achievement% 54 Wizard Run 0 Options --------- ASCII 0 Keyboard 0 Movement Mouse Keybinds 0 Fullscreen 2 Font 12/Smallcaps Map View 83x54 Tactical HUD 1 Map Filters NONE Filters NONE Steam X RUN: 40b5ecff-ae3b-41ec-a9fe-2f91c7a22b0a